bitfinex-derivatives/quotes_SOLF0:USTF0_20241027
["timestamp","ask_amount","ask_price","bid_price","bid_amount"]
[1730036467324,2.8341,176.61,176.53,4.62]
[1730036467325,4.62,176.65,176.53,4.62]
[1730036467626,4.62,176.65,176.54,1.41786647]
[1730036467817,4.62,176.65,176.53,4.62]
[1730036468325,4.62,176.65,176.54,1.41789363]
[1730036468525,4.62,176.65,176.55,1.41789363]
[1730036468824,2.8342,176.61,176.53,4.62]
[1730036469026,2.8342,176.61,176.54,1.41789377]
[1730036469225,4.62,176.65,176.55,1.41789377]
[1730036469524,2.8342,176.6,176.55,2.8349]
[1730036469819,4.62,176.65,176.52,4.62]
[1730036470017,4.62,176.65,176.53,3.68639784]
[1730036470218,4.62,176.65,176.54,1.41784532]
[1730036470522,1.2645,176.66,176.55,4.25274532]
[1730036470725,4.62,176.65,176.56,1.41784532]
[1730036471024,2.8342,176.61,176.56,2.8348]
[1730036471217,2.8342,176.61,176.57,1.41778467]
[1730036471418,2.8342,176.61,176.56,2.8348]
[1730036471821,4.62,176.65,176.56,2.8348]
[1730036472023,4.62,176.65,176.57,2.8345]
[1730036472326,2.834,176.62,176.54,2.26849383]
[1730036472523,4.62,176.65,176.55,1.41780864]
[1730036472727,4.62,176.65,176.53,4.62]
[1730036472728,4.62,176.65,176.57,2.8345]
[1730036473025,2.834,176.62,176.57,2.8345]
[1730036473621,2.834,176.62,176.58,1.41773171]
[1730036473814,2.834,176.62,176.57,2.8345]
[1730036474022,2.834,176.62,176.58,1.4177317]
[1730036474328,2.834,176.62,176.57,2.8345]
[1730036474534,4.62,176.65,176.58,1.41772709]
[1730036474832,4.62,176.65,176.56,2.8347]
[1730036475223,2.8338,176.63,176.56,2.8347]
[1730036475418,4.62,176.65,176.56,2.8347]
[1730036475624,4.62,176.65,176.57,2.8346]
[1730036475826,2.8342,176.6,176.57,2.8346]
[1730036477525,2.8344,176.59,176.53,4.62]
[1730036477725,4.62,176.61,176.53,4.62]
[1730036478227,2.8342,176.6,176.52,5.8049]
[1730036478431,4.62,176.61,176.52,5.8049]
[1730036478624,4.62,176.61,176.56,2.8348]
[1730036478824,4.62,176.63,176.56,2.8348]
[1730036479026,4.62,176.63,176.57,2.8346]
[1730036479221,4.62,176.63,176.52,1.1849]
[1730036479621,4.62,176.63,176.55,2.8349]
[1730036480027,4.62,176.63,176.54,2.835]
[1730036480226,4.62,176.63,176.52,1.1849]
[1730036480423,4.62,176.63,176.5,4.62]
[1730036480629,2.8346,176.58,176.54,2.8351]
[1730036482026,2.8347,176.57,176.54,2.8351]
[1730036483833,4.62,176.59,176.49,6.88868849]
[1730036484024,2.8348,176.56,176.53,2.8352]
[1730036484229,4.62,176.59,176.48,1.206]
[1730036484429,4.62,176.59,176.49,8.30664124]
[1730036484638,4.62,176.59,176.5,1.41793911]
[1730036484929,4.62,176.59,176.49,4.62]
[1730036485136,4.62,176.59,176.5,1.41798714]
[1730036485334,2.8348,176.57,176.49,4.62]
[1730036485530,2.8348,176.57,176.5,1.4179984]
[1730036485726,2.8348,176.57,176.49,4.62]
[1730036485932,2.8348,176.57,176.53,2.8351]
[1730036486833,2.8348,176.57,176.54,2.8351]
[1730036487838,4.62,176.59,176.48,1.206]
[1730036488027,2.8349,176.56,176.5,2.8358]
[1730036488229,4.62,176.55,176.5,2.8358]
[1730036488533,2.8355,176.52,176.49,2.8358]
[1730036488730,4.62,176.55,176.47,2.68856707]
[1730036489036,4.62,176.55,176.47,1.2704]
[1730036489234,2.8353,176.53,176.5,2.8357]
[1730036493243,4.62,176.55,176.47,1.2704]
[1730036493842,4.62,176.55,176.53,2.8352]
[1730036494137,4.62,176.55,176.44,2.66387809]
[1730036494341,4.62,176.55,176.44,1.2457]
[1730036494542,2.8361,176.49,176.46,2.8363]
[1730036495242,2.8361,176.49,176.47,2.8362]
[1730036495930,2.8361,176.49,176.44,1.2457]
[1730036495931,4.6,176.51,176.44,1.2457]
[1730036497246,2.8358,176.5,176.47,2.8362]
[1730036497537,4.6,176.51,176.44,1.2457]
[1730036497739,7.4356,176.51,176.44,1.2457]
[1730036497936,4.6,176.51,176.44,1.2457]
[1730036498136,4.6,176.51,176.5,2.8358]
[1730036498343,4.62,176.54,176.5,2.8358]
[1730036499144,2.8354,176.53,176.5,2.8358]
[1730036499938,2.8354,176.53,176.44,1.2457]
[1730036500244,2.8354,176.53,176.51,2.8356]
[1730036501239,4.62,176.54,176.51,2.8356]
[1730036501544,7.4552,176.54,176.51,2.8356]
[1730036502137,7.4552,176.54,176.52,2.8355]
[1730036503636,4.62,176.54,176.45,4.62]
[1730036503940,4.62,176.54,176.44,1.2457]
[1730036504332,2.8357,176.51,176.48,2.836]
[1730036505445,4.62,176.54,176.44,1.2457]
[1730036506345,2.8361,176.49,176.44,1.2457]
[1730036507041,2.8359,176.5,176.47,2.8363]
[1730036507347,4.62,176.54,176.47,2.8363]
[1730036508140,4.62,176.54,176.43,1.244]
[1730036508340,4.62,176.54,176.46,2.8364]
[1730036508538,2.8362,176.48,176.43,1.244]
[1730036508945,4.62,176.5,176.44,2.8367]
[1730036509141,2.8364,176.47,176.44,2.8367]
[1730036512550,2.8364,176.47,176.45,2.8366]
[1730036512945,4.62,176.5,176.45,2.8366]
[1730036513139,4.62,176.5,176.46,2.8363]
[1730036513343,4.62,176.5,176.4,2.3387]
[1730036513747,4.62,176.5,176.41,5.6743]
[1730036514254,4.62,176.5,176.41,10.2943]
[1730036514450,7.4559,176.5,176.41,10.2943]
[1730036514952,7.4559,176.5,176.47,2.8362]
[1730036516854,7.4559,176.5,176.48,2.8361]
[1730036517049,2.836,176.49,176.41,10.2943]
[1730036517556,2.836,176.49,176.46,2.8363]
[1730036518758,2.836,176.49,176.41,10.2943]
[1730036519445,2.836,176.49,176.46,2.8363]
[1730036519859,2.836,176.49,176.41,10.2943]
[1730036520152,2.836,176.49,176.46,2.8363]
[1730036520853,2.836,176.49,176.47,2.8363]
[1730036524256,2.836,176.49,176.46,2.8364]
[1730036524563,4.62,176.5,176.4,1.1707]
[1730036524958,3.6413,176.58,176.4,1.1707]
[1730036524959,5.6697,176.56,176.4,1.1707]
[1730036525258,5.6697,176.56,176.41,1.2138]
[1730036525259,4.6,176.55,176.41,1.2138]
[1730036525460,2.8359,176.5,176.41,1.2138]
[1730036525656,7.4359,176.5,176.41,1.2138]
[1730036525855,4.6,176.5,176.41,1.2138]
[1730036526066,5.6697,176.56,176.41,1.2138]
[1730036526367,4.6,176.55,176.41,1.2138]
[1730036527264,4.6,176.55,176.47,2.8362]
[1730036527771,2.8359,176.5,176.47,2.8362]
[1730036528560,4.6,176.51,176.41,1.2138]
[1730036528765,4.6,176.51,176.41,6.8882]
[1730036529365,7.4356,176.51,176.49,2.8359]
[1730036529560,4.6,176.51,176.41,8.30657376]
[1730036529768,4.6,176.51,176.41,6.8882]
[1730036530369,4.6,176.51,176.41,8.30657376]
[1730036530670,7.4357,176.51,176.49,2.8359]
[1730036530968,4.6,176.51,176.41,8.30657376]
[1730036531160,4.6,176.51,176.42,1.41837376]
[1730036531362,2.8359,176.5,176.47,2.8361]
[1730036534463,2.8359,176.5,176.42,1.41836143]
[1730036534464,2.8359,176.5,176.43,1.41836143]
[1730036534667,2.8359,176.5,176.48,2.836]
[1730036536777,2.8359,176.5,176.47,2.8362]
[1730036537872,2.836,176.49,176.46,2.8364]
[1730036538275,2.836,176.49,176.47,2.8362]
[1730036538582,2.8364,176.47,176.41,1.2138]
[1730036538769,4.6,176.52,176.42,1.4184888]
[1730036538968,4.6,176.52,176.46,2.8363]
[1730036539169,2.8361,176.49,176.46,2.8363]
[1730036541272,4.6,176.48,176.46,2.8363]
[1730036542066,4.6,176.48,176.45,2.8365]
[1730036542267,4.6,176.48,176.43,1.41847539]
[1730036542471,4.6,176.48,176.41,1.2138]
[1730036542668,7.4362,176.48,176.46,2.8363]
[1730036543273,4.6,176.48,176.46,2.8363]
[1730036550084,7.4361,176.48,176.46,2.8363]
[1730036554288,4.6,176.48,176.43,2.8369]
[1730036554488,4.6,176.48,176.44,1.4184421]
[1730036554693,4.6,176.5,176.45,1.4184421]
[1730036554889,7.4359,176.5,176.47,2.8362]
[1730036555091,4.6,176.5,176.47,2.8362]
[1730036555590,2.836,176.49,176.47,2.8362]
[1730036555986,4.6,176.5,176.42,5.674]
[1730036556192,4.6,176.5,176.43,1.41845661]
[1730036556492,4.6,176.5,176.44,1.41845661]
[1730036556691,4.6,176.5,176.45,1.41845661]
[1730036556888,4.6,176.5,176.46,1.41845661]
[1730036557090,4.6,176.5,176.47,1.41845661]
[1730036557391,2.836,176.49,176.42,5.674]
[1730036557692,2.836,176.49,176.43,1.41843237]
[1730036557893,2.836,176.49,176.44,1.41843237]
[1730036558194,2.836,176.49,176.44,2.8367]
[1730036558388,2.836,176.49,176.45,1.41843251]
[1730036558590,2.836,176.49,176.46,1.41843251]
[1730036558790,2.836,176.49,176.47,1.41843251]
[1730036558992,2.836,176.49,176.46,2.8363]
[1730036559193,2.836,176.49,176.47,1.41843251]
[1730036559489,4.6,176.5,176.45,2.8366]
[1730036559689,4.6,176.5,176.46,1.41851641]
[1730036559989,4.6,176.5,176.41,1.2138]
[1730036560185,4.6,176.5,176.42,1.41851655]
[1730036560393,4.6,176.5,176.43,1.41851655]
[1730036560693,4.6,176.5,176.44,1.41851655]
[1730036560895,4.6,176.5,176.45,1.41851655]
[1730036561098,2.836,176.49,176.46,4.25481655]
[1730036561396,4.6,176.5,176.47,1.41851655]
[1730036561699,2.836,176.49,176.46,2.8363]
[1730036561995,4.6,176.5,176.47,1.41845745]
[1730036562194,7.4358,176.5,176.41,1.2138]
[1730036562495,7.4358,176.5,176.48,2.8361]
[1730036562990,7.4358,176.5,176.47,2.8361]
[1730036564196,2.836,176.49,176.48,1.41842216]
[1730036564387,2.836,176.49,176.47,2.8361]
[1730036566594,10.60043682,176.59,176.48,56.5183433]
[1730036566799,2.83917318,176.69,176.49,8.4191433]
[1730036566996,2.8335,176.65,176.56,2.8348]
[1730036567187,2.8335,176.65,176.57,6.0183433]
[1730036567397,6.43246386,176.7,176.58,4.6]
[1730036567898,6.43246386,176.7,176.49,2.4008]
[1730036567899,2.8333,176.66,176.55,2.8349]
[1730036568093,11.03246386,176.7,176.56,1.4175563]
[1730036568292,11.03246386,176.7,176.49,2.4008]
[1730036568492,2.8338,176.63,176.5,8.28581967]
[1730036568696,2.8338,176.63,176.51,3.68581967]
[1730036568898,2.8338,176.63,176.52,3.68581967]
[1730036569092,2.8338,176.63,176.58,2.8344]
[1730036569795,2.8338,176.63,176.57,4.6]
[1730036569990,2.8338,176.63,176.59,2.8343]
[1730036570196,2.8338,176.63,176.57,4.6]
[1730036570390,2.8338,176.63,176.49,2.4008]
[1730036570602,2.8338,176.63,176.58,2.8344]
[1730036570903,2.8338,176.63,176.5,8.28578369]
[1730036570904,2.8338,176.63,176.56,4.6]
[1730036571100,2.8334,176.65,176.6,2.8341]
[1730036571292,4.6,176.66,176.56,4.6]
[1730036571694,4.6,176.66,176.57,1.41760925]
[1730036571998,2.8335,176.65,176.58,1.41760925]
[1730036572197,2.8335,176.65,176.57,2.26809103]
[1730036572495,2.8335,176.65,176.58,1.41755689]
[1730036572700,2.8336,176.64,176.56,4.6]
[1730036572900,4.6,176.66,176.57,1.41755973]
[1730036573202,4.6,176.66,176.58,2.8344]
[1730036573395,2.834,176.62,176.58,2.8344]
[1730036574695,2.8337,176.63,176.59,2.8342]
[1730036575104,4.6,176.66,176.55,4.6]
[1730036575302,4.6,176.66,176.6,2.8341]
[1730036575303,2.8336,176.64,176.6,2.8341]
[1730036576794,2.8337,176.63,176.58,2.8344]
[1730036576995,4.6,176.66,176.58,2.8344]
[1730036577200,4.6,176.66,176.55,4.6]
[1730036577502,2.8337,176.63,176.59,2.8343]
[1730036577897,4.6,176.66,176.59,2.8343]
[1730036578098,2.8338,176.63,176.59,2.8343]
[1730036579900,1.0,176.69,176.55,4.6]
[1730036580201,2.8334,176.66,176.62,2.8337]
[1730036580408,4.6,176.68,176.62,2.8337]
[1730036581396,2.8334,176.65,176.62,2.8337]
[1730036584206,4.6,176.68,176.58,4.6]
[1730036584510,4.6,176.68,176.61,2.834]
[1730036584511,2.8335,176.64,176.61,2.834]
[1730036584900,2.8338,176.63,176.6,2.8341]
[1730036587513,2.834,176.62,176.58,2.8344]
[1730036587814,4.6,176.68,176.58,2.8344]
[1730036588405,4.6,176.68,176.52,1.41750794]
[1730036588609,4.6,176.68,176.53,4.6]
[1730036588810,2.834,176.61,176.53,4.6]
[1730036589415,2.834,176.61,176.58,2.8344]
[1730036589816,2.8339,176.62,176.53,4.6]
[1730036590417,2.8339,176.62,176.53,6.01750794]
[1730036590618,2.8339,176.62,176.53,4.6]
[1730036591616,2.8339,176.62,176.59,2.8343]
[1730036591812,2.8343,176.6,176.55,4.6]
[1730036592011,2.8343,176.6,176.57,2.8346]
[1730036592212,2.8343,176.6,176.55,4.6]
[1730036592608,2.8343,176.6,176.51,5.671]
[1730036592808,2.8343,176.6,176.52,4.6]
[1730036593318,2.8343,176.6,176.54,2.8351]
[1730036593619,2.8343,176.6,176.52,6.01750794]
[1730036594021,2.8343,176.6,176.52,1.41750794]
[1730036594220,2.8343,176.6,176.53,4.6]
[1730036594422,2.8343,176.6,176.57,2.8345]
[1730036594717,2.8343,176.6,176.54,4.6]
[1730036595316,2.8343,176.6,176.57,2.8345]
[1730036595515,2.8343,176.6,176.54,4.6]
[1730036596321,2.8343,176.6,176.55,2.8349]
[1730036596518,2.8344,176.59,176.51,5.671]
[1730036597226,2.8344,176.59,176.52,4.6]
[1730036597423,4.6,176.64,176.57,2.8346]
[1730036597920,4.6,176.64,176.53,4.6]
[1730036598128,2.8341,176.61,176.53,4.6]
[1730036598621,2.8341,176.61,176.51,5.671]
[1730036598816,2.8341,176.61,176.51,7.08868332]
[1730036599024,2.8341,176.61,176.52,4.6]
[1730036599326,2.8341,176.61,176.59,2.8343]
[1730036599523,4.6,176.64,176.5,1.41768332]
[1730036599724,1.2301,176.63,176.56,2.8347]
[1730036599920,3.6974,176.63,176.56,2.8347]
[1730036600228,2.8345,176.59,176.56,2.8347]
[1730036603028,7.4342,176.6,176.57,2.8346]
[1730036603431,4.6,176.6,176.57,2.8346]
[1730036604234,7.4342,176.6,176.53,2.8352]
[1730036604534,7.4342,176.6,176.51,6.01777085]
[1730036605029,2.8344,176.59,176.53,2.8352]
[1730036605230,4.6,176.6,176.51,1.41777085]
[1730036605536,4.6,176.6,176.48,1.1902]
[1730036605537,7.39107555,176.6,176.48,1.1902]
[1730036605744,2.8353,176.54,176.5,2.8357]
[1730036605935,7.4353,176.54,176.5,2.8357]
[1730036606438,2.8355,176.52,176.49,2.8359]
[1730036606742,4.6,176.54,176.45,1.41801907]
[1730036607239,2.8357,176.51,176.47,2.8362]
[1730036607541,4.6,176.5,176.47,2.8362]
[1730036608042,4.6,176.5,176.39,6.01801907]
[1730036608244,2.836,176.49,176.46,2.8364]
[1730036609340,2.836,176.49,176.45,2.8365]
[1730036610848,2.836,176.49,176.46,2.8364]
[1730036613650,2.836,176.49,176.45,2.8365]
[1730036613947,2.836,176.49,176.39,2.61564184]
[1730036614546,2.836,176.49,176.46,2.8364]
[1730036614941,2.8363,176.47,176.39,2.61564184]
[1730036616244,4.6,176.5,176.39,2.61564184]
[1730036616448,4.6,176.49,176.39,1.1973]
[1730036616747,8.6643816,176.49,176.4,2.8373]
[1730036616937,2.837,176.43,176.37,2.422]
[1730036617142,1.2323,176.49,176.37,2.422]
[1730036617346,5.6727,176.47,176.35,4.25672442]
[1730036617647,2.81874948,176.46,176.33,2.3664]
[1730036618444,2.81874948,176.46,176.37,2.8379]
[1730036618650,2.81874948,176.46,176.33,2.3664]
[1730036619144,2.8373,176.41,176.33,2.3664]
[1730036619348,4.6,176.4,176.33,2.3664]
[1730036619849,4.6,176.63,176.34,7.06158754]
[1730036620049,6.9456,176.62,176.35,2.46158754]
[1730036620253,6.9456,176.62,176.36,7.06123534]
[1730036620451,6.9456,176.62,176.5,2.8357]
[1730036620955,2.8349,176.56,176.5,2.8357]
[1730036621153,4.6,176.55,176.5,2.8357]
[1730036622053,7.4351,176.55,176.49,2.8359]
[1730036622947,7.4351,176.55,176.43,4.6]
[1730036623250,2.8352,176.54,176.49,2.8358]
[1730036626552,2.8352,176.54,176.5,2.8358]
[1730036628051,2.8353,176.54,176.5,2.8358]
[1730036629151,2.8353,176.54,176.42,9.58872777]
[1730036629359,2.8353,176.54,176.51,2.8355]
[1730036629758,7.435,176.55,176.51,2.8355]
[1730036629959,4.6,176.55,176.43,1.41812777]
[1730036630160,4.6,176.55,176.52,2.8353]
[1730036632258,7.435,176.55,176.52,2.8353]
[1730036634555,2.8348,176.57,176.54,2.835]
[1730036634752,4.6,176.56,176.54,2.835]
[1730036634960,1.0,176.61,176.46,4.6]
[1730036635159,1.0,176.61,176.55,2.8349]
[1730036635160,2.8344,176.59,176.55,2.8349]
[1730036635359,4.6,176.6,176.47,5.6725]
[1730036635658,2.8347,176.57,176.54,2.8351]
[1730036635856,4.6,176.56,176.54,2.8351]
[1730036636364,4.6,176.56,176.52,2.8353]
[1730036636365,7.4349,176.56,176.52,2.8353]
[1730036636556,7.4349,176.56,176.47,5.6725]
[1730036636958,7.4349,176.56,176.52,2.8354]
[1730036637263,7.4349,176.56,176.47,5.6725]
[1730036637264,2.835,176.55,176.45,4.6]
[1730036637561,4.6,176.56,176.45,4.6]
[1730036637761,2.8352,176.54,176.51,2.8356]
[1730036638462,2.8352,176.54,176.45,4.6]
[1730036638863,2.8353,176.53,176.43,1.41812777]
[1730036639060,4.6,176.56,176.48,2.836]
[1730036639561,4.6,176.56,176.43,6.01819919]
[1730036639756,4.6,176.56,176.42,3.5706]
[1730036639953,2.8362,176.48,176.42,3.5706]
[1730036640156,4.6,176.47,176.43,2.8369]
[1730036640760,4.6,176.47,176.42,3.5706]
[1730036641363,7.4363,176.47,176.44,2.8367]
[1730036641667,7.4363,176.47,176.42,3.5706]
[1730036641668,4.6,176.47,176.42,3.5706]
[1730036641864,2.8356,176.52,176.47,2.8362]
[1730036642064,4.5883,176.55,176.47,2.8362]
[1730036642065,4.6,176.51,176.47,2.8362]
[1730036642967,2.8359,176.5,176.46,2.8364]
[1730036643158,4.6,176.51,176.42,3.5706]
[1730036643564,2.8359,176.49,176.42,3.5706]
[1730036644063,2.8365,176.46,176.42,5.1822]
[1730036644267,4.6,176.45,176.42,5.1822]
[1730036644663,4.6,176.45,176.42,2.837]
[1730036645259,2.8365,176.46,176.39,1.41835296]
[1730036645466,4.6,176.52,176.4,5.6747]
[1730036645658,4.6,176.52,176.41,1.41819987]
[1730036645864,4.6,176.52,176.45,2.8366]
[1730036646068,4.6,176.52,176.46,3.6145]
[1730036646657,4.6,176.52,176.5,2.8357]
[1730036647163,4.6,176.53,176.46,3.6145]
[1730036648266,4.6,176.53,176.51,2.8355]
[1730036648666,3.7472,176.6,176.46,3.6145]
[1730036648966,4.6,176.59,176.46,3.6145]
[1730036649166,4.6,176.58,176.46,3.6145]
[1730036649873,2.8353,176.54,176.51,2.8356]
[1730036650073,7.4353,176.54,176.51,2.8356]
[1730036653668,7.4353,176.54,176.46,3.6145]
[1730036653669,4.6,176.54,176.53,2.8353]
[1730036655567,2.8349,176.56,176.53,2.8353]
[1730036655773,7.4149,176.56,176.53,2.8353]
[1730036656868,4.58,176.57,176.48,1.41811374]
[1730036657178,4.58,176.58,176.47,1.41799437]
[1730036657372,2.835,176.55,176.5,2.8357]
[1730036657580,2.835,176.55,176.48,1.41799437]
[1730036657977,4.58,176.57,176.48,1.41799437]
[1730036658177,2.8349,176.56,176.52,2.8354]
[1730036658671,4.58,176.57,176.52,2.8354]
[1730036658876,2.835,176.55,176.52,2.8354]
[1730036663870,2.835,176.55,176.47,1.41800658]
[1730036664074,2.835,176.55,176.48,1.41800658]
[1730036664282,2.835,176.55,176.49,1.41800658]
[1730036664581,2.835,176.55,176.47,1.41800658]
[1730036664880,2.835,176.55,176.48,1.41800658]
[1730036665180,2.835,176.55,176.46,3.6145]
[1730036665181,2.835,176.55,176.52,2.8354]
[1730036665778,2.8352,176.54,176.51,2.8356]
[1730036666178,4.58,176.57,176.46,3.6145]
[1730036666379,4.58,176.57,176.49,2.8359]
[1730036666587,4.58,176.57,176.48,1.41811374]
[1730036666783,4.58,176.57,176.46,3.6145]
[1730036666985,4.58,176.57,176.47,1.41809561]
[1730036667286,4.58,176.57,176.5,2.8358]
[1730036667983,4.58,176.57,176.46,3.6145]
[1730036668184,4.58,176.57,176.47,1.41818948]
[1730036668488,4.58,176.57,176.48,2.836]
[1730036670079,2.8358,176.5,176.47,2.8362]
[1730036670279,2.8358,176.5,176.46,3.6145]
[1730036670280,4.58,176.51,176.46,2.4317]
[1730036670586,4.58,176.51,176.33,2.78585275]
[1730036670587,2.8364,176.47,176.43,2.8368]
[1730036670787,2.8364,176.47,176.44,1.4183234]
[1730036670989,2.8364,176.47,176.45,1.4183234]
[1730036671288,2.8364,176.47,176.44,2.8366]
[1730036671484,2.8364,176.47,176.45,1.41835251]
[1730036671686,7.4162,176.48,176.44,2.8366]
[1730036673795,4.58,176.48,176.37,8.2651]
[1730036673985,4.58,176.48,176.38,1.41835677]
[1730036674186,4.58,176.48,176.39,1.41835677]
[1730036674485,4.58,176.48,176.4,1.41835677]
[1730036674684,4.58,176.48,176.41,1.41835677]
[1730036674884,4.58,176.48,176.42,1.41835677]
[1730036675097,4.58,176.48,176.37,3.6851]
[1730036675284,2.8367,176.45,176.38,1.41863088]
[1730036675485,4.58,176.44,176.39,1.41863088]
[1730036675688,4.58,176.44,176.4,1.41863088]
[1730036675888,2.8372,176.41,176.37,2.8378]
[1730036676090,4.58,176.4,176.38,1.4187583]
[1730036676287,4.58,176.4,176.39,1.4187583]
[1730036676794,4.58,176.4,176.32,1.2577]
[1730036676795,4.58,176.4,176.38,2.8377]
[1730036677491,2.8378,176.38,176.34,2.8383]
[1730036677689,4.58,176.4,176.34,2.8383]
[1730036678194,4.58,176.4,176.32,1.2577]
[1730036678488,4.58,176.4,176.32,2.8387]
[1730036678692,2.8381,176.36,176.32,2.8387]
[1730036678887,7.4181,176.36,176.32,2.8387]
[1730036679489,7.4181,176.36,176.33,2.8385]
[1730036679989,4.58,176.36,176.33,2.8385]
[1730036680190,4.58,176.36,176.29,2.3268]
[1730036680391,3.6614,176.47,176.29,2.3268]
[1730036680392,4.58,176.38,176.29,2.3268]
[1730036680892,4.58,176.38,176.35,2.8381]
[1730036682690,4.58,176.38,176.29,2.3268]
[1730036682898,4.58,176.38,176.36,2.838]
[1730036683098,4.58,176.38,176.29,2.3268]
[1730036683299,2.8379,176.37,176.29,2.3268]
[1730036683493,2.8379,176.37,176.34,2.8382]
[1730036683993,2.8379,176.37,176.29,2.3268]
[1730036684693,2.8379,176.37,176.33,2.8384]
[1730036685491,2.8379,176.37,176.29,2.3268]
[1730036685790,7.4178,176.38,176.29,2.3268]
[1730036686188,4.58,176.38,176.34,2.8383]
[1730036687204,2.85837831,176.43,176.34,2.8383]
[1730036687504,2.8379,176.37,176.34,2.8383]
[1730036687798,7.4179,176.37,176.34,2.8383]
[1730036688095,3.6614,176.47,176.29,8.005]
[1730036688096,7.4168,176.44,176.29,8.005]
[1730036688300,7.4168,176.44,176.29,2.3268]
[1730036688502,7.4168,176.44,176.4,2.8372]
[1730036688690,7.4168,176.44,176.3,5.678]
[1730036688691,4.58,176.43,176.32,4.58]
[1730036689104,4.58,176.43,176.41,2.8372]
[1730036690400,7.417,176.43,176.32,4.58]
[1730036690795,4.58,176.43,176.32,4.58]
[1730036690990,2.8371,176.42,176.39,2.8375]
[1730036693202,4.58,176.43,176.31,4.58]
[1730036694304,2.8371,176.42,176.39,2.8375]
[1730036695402,4.58,176.43,176.31,4.58]
[1730036695600,2.8373,176.41,176.38,2.8377]
[1730036696107,4.58,176.43,176.29,2.3268]
[1730036696405,4.58,176.43,176.3,4.58]
[1730036696991,2.8378,176.38,176.35,2.8382]
[1730036698299,4.58,176.39,176.3,4.58]
[1730036698497,4.58,176.39,176.37,2.8378]
[1730036698998,4.58,176.39,176.3,4.58]
[1730036699300,7.4176,176.39,176.36,2.8379]
[1730036699507,2.8376,176.39,176.3,4.58]
[1730036700506,2.8376,176.39,176.36,2.8379]
[1730036700705,4.58,176.4,176.3,4.58]
[1730036701402,2.8379,176.37,176.34,2.8383]
[1730036702111,4.58,176.4,176.3,4.58]
[1730036702707,2.8377,176.38,176.35,2.8381]
[1730036704305,7.4174,176.4,176.3,4.58]
[1730036705007,2.8374,176.4,176.3,4.58]
[1730036705212,2.8376,176.39,176.37,2.8378]
[1730036705809,55.1,176.5,176.37,2.8378]
[1730036705810,4.58,176.62,176.37,4.58]
[1730036706005,2.3392,176.57,176.38,3.636]
[1730036706211,4.58,176.56,176.38,3.636]
[1730036706806,2.8352,176.54,176.48,2.836]
[1730036707511,2.8352,176.54,176.44,4.58]
[1730036707512,2.8352,176.54,176.49,2.8359]
[1730036708912,4.58,176.55,176.38,3.636]
[1730036708913,2.8358,176.5,176.45,2.8366]
[1730036709112,4.58,176.51,176.4,4.58]
[1730036709314,4.58,176.5,176.4,4.58]
[1730036709609,1.1872,176.57,176.4,4.58]
[1730036709913,4.58,176.56,176.4,4.58]
[1730036710509,2.8354,176.53,176.48,2.836]